[Event "*** Titled Tuesday Blitz"]
[Site "Chess.com"]
[Date "2020.04.21"]
[Round "1"]
[White "RiskyDecision"]
[Black "quesfr"]
[Result "1-0"]
[WhiteElo "2557"]
[BlackElo "2191"]
[TimeControl "180+1"]
[EndTime "10:07:46 PDT"]
[Termination "RiskyDecision won on time"]

1. d4 {[%clk 0:03:00.7]} 1... d5 {[%clk 0:03:00]} 2. c4 {[%clk 0:02:26.1]} 2...
e6 {[%clk 0:02:59.7]} 3. Nf3 {[%clk 0:02:08.8]} 3... Nf6 {[%clk 0:02:59.5]} 4.
g3 {[%clk 0:02:09.3]} 4... Bb4+ {[%clk 0:02:57.9]} 5. Bd2 {[%clk 0:02:08.6]}
5... Bd6 {[%clk 0:02:57.8]} 6. Bg2 {[%clk 0:02:08.5]} 6... c6 {[%clk 0:02:58.1]}
7. O-O {[%clk 0:02:08.4]} 7... Nbd7 {[%clk 0:02:58.1]} 8. Qc2 {[%clk 0:02:08.7]}
8... O-O {[%clk 0:02:56.4]} 9. Bg5 {[%clk 0:02:09.1]} 9... h6 {[%clk 0:02:54.4]}
10. Bxf6 {[%clk 0:02:08.1]} 10... Nxf6 {[%clk 0:02:54.3]} 11. Nbd2 {[%clk
0:02:09]} 11... Re8 {[%clk 0:02:37.7]} 12. e4 {[%clk 0:02:09]} 12... dxe4 {[%clk
0:02:37.6]} 13. Nxe4 {[%clk 0:02:09.9]} 13... Nxe4 {[%clk 0:02:38.1]} 14. Qxe4
{[%clk 0:02:10.4]} 14... c5 {[%clk 0:02:30.8]} 15. Rfd1 {[%clk 0:02:07.1]} 15...
cxd4 {[%clk 0:02:26.9]} 16. Rxd4 {[%clk 0:02:06]} 16... Qc7 {[%clk 0:02:24.5]}
17. Rad1 {[%clk 0:02:03.5]} 17... Bc5 {[%clk 0:02:24.1]} 18. R4d2 {[%clk
0:02:02.9]} 18... f6 {[%clk 0:01:36]} 19. Nd4 {[%clk 0:01:52.9]} 19... Bd7
{[%clk 0:01:08]} 20. Nb5 {[%clk 0:01:51.8]} 20... Bxb5 {[%clk 0:01:04.4]} 21.
cxb5 {[%clk 0:01:52.7]} 21... Rab8 {[%clk 0:00:58.1]} 22. Rd7 {[%clk 0:01:46.6]}
22... Qb6 {[%clk 0:00:48]} 23. Qg6 {[%clk 0:01:25.1]} 23... Re7 {[%clk
0:00:47.9]} 24. Rxe7 {[%clk 0:01:25.3]} 24... Bxe7 {[%clk 0:00:48.8]} 25. Rd7
{[%clk 0:01:22.1]} 25... Bf8 {[%clk 0:00:43.7]} 26. Qf7+ {[%clk 0:00:57.9]}
26... Kh8 {[%clk 0:00:43.6]} 27. Rxb7 {[%clk 0:00:39]} 27... Rxb7 {[%clk
0:00:43.6]} 28. Qxf8+ {[%clk 0:00:34.3]} 28... Kh7 {[%clk 0:00:42.8]} 29. Be4+
{[%clk 0:00:33.1]} 29... f5 {[%clk 0:00:42.1]} 30. Bxb7 {[%clk 0:00:33.7]} 30...
Qxb7 {[%clk 0:00:42.2]} 31. Qc5 {[%clk 0:00:32.7]} 31... Qe4 {[%clk 0:00:38.9]}
32. a3 {[%clk 0:00:18.4]} 32... Qb1+ {[%clk 0:00:24.3]} 33. Kg2 {[%clk 0:00:18]}
33... Qxb2 {[%clk 0:00:24.5]} 34. a4 {[%clk 0:00:11.7]} 34... Qb1 {[%clk
0:00:12.7]} 35. Qxa7 {[%clk 0:00:10.9]} 35... Qe4+ {[%clk 0:00:12.4]} 36. f3
{[%clk 0:00:11.2]} 36... Qc2+ {[%clk 0:00:12.4]} 37. Qf2 {[%clk 0:00:10.6]}
37... Qxa4 {[%clk 0:00:11.9]} 38. Qb2 {[%clk 0:00:11]} 38... Qa7 {[%clk
0:00:09.1]} 39. b6 {[%clk 0:00:10.9]} 39... Qb7 {[%clk 0:00:09.6]} 40. Kf2
{[%clk 0:00:11.1]} 40... Kg6 {[%clk 0:00:07.7]} 41. Qb5 {[%clk 0:00:11.5]} 41...
Kf6 {[%clk 0:00:05.7]} 42. Qc5 {[%clk 0:00:11.8]} 42... Qa6 {[%clk 0:00:02.4]}
43. Qd4+ {[%clk 0:00:10.4]} 43... Kg6 {[%clk 0:00:01.6]} 44. Qb2 {[%clk
0:00:10]} 1-0

[Event "*** Titled Tuesday Blitz"]
[Site "Chess.com"]
[Date "2020.04.21"]
[Round "1"]
[White "Kimster98"]
[Black "tgpgoat"]
[Result "1-0"]
[WhiteElo "2551"]
[BlackElo "2169"]
[TimeControl "180+1"]
[EndTime "10:07:46 PDT"]
[Termination "Kimster98 won by resignation"]

1. d4 {[%clk 0:03:00.7]} 1... Nf6 {[%clk 0:02:59.4]} 2. Bf4 {[%clk 0:03:00.1]}
2... d5 {[%clk 0:02:55]} 3. e3 {[%clk 0:03:00]} 3... c5 {[%clk 0:02:55.1]} 4. c3
{[%clk 0:02:58.8]} 4... Nc6 {[%clk 0:02:55.3]} 5. Nd2 {[%clk 0:02:58.8]} 5...
Qb6 {[%clk 0:02:55.2]} 6. Qb3 {[%clk 0:02:57.5]} 6... c4 {[%clk 0:02:55.5]} 7.
Qc2 {[%clk 0:02:57.7]} 7... g6 {[%clk 0:02:54.6]} 8. b3 {[%clk 0:02:43]} 8...
Bf5 {[%clk 0:02:53.2]} 9. Qc1 {[%clk 0:02:42.7]} 9... cxb3 {[%clk 0:02:49.9]}
10. axb3 {[%clk 0:02:43.6]} 10... Bg7 {[%clk 0:02:49.6]} 11. Ngf3 {[%clk
0:02:43.7]} 11... O-O {[%clk 0:02:49.2]} 12. h3 {[%clk 0:02:43.5]} 12... Rac8
{[%clk 0:02:41.9]} 13. Qb2 {[%clk 0:02:40.5]} 13... Nd7 {[%clk 0:02:36.8]} 14.
g4 {[%clk 0:02:33.1]} 14... Be4 {[%clk 0:02:34]} 15. Nxe4 {[%clk 0:02:30]} 15...
dxe4 {[%clk 0:02:34.9]} 16. Nd2 {[%clk 0:02:30.7]} 16... e5 {[%clk 0:02:35.3]}
17. Nc4 {[%clk 0:02:25.9]} 17... Qd8 {[%clk 0:02:28.6]} 18. Bg3 {[%clk
0:02:23.6]} 18... exd4 {[%clk 0:02:27.7]} 19. cxd4 {[%clk 0:02:21.6]} 19... Nb4
{[%clk 0:02:25]} 20. Bd6 {[%clk 0:02:12.8]} 20... Nc5 {[%clk 0:02:21.6]} 21.
Bxc5 {[%clk 0:02:07.2]} 21... Rxc5 {[%clk 0:02:15.2]} 22. Qd2 {[%clk 0:02:07.1]}
22... Nc6 {[%clk 0:02:01]} 23. dxc5 {[%clk 0:02:03.4]} 23... Bxa1 {[%clk
0:01:54.2]} 24. Bg2 {[%clk 0:01:52]} 24... Qe7 {[%clk 0:01:39.2]} 25. Nd6 {[%clk
0:01:42.9]} 25... Rd8 {[%clk 0:00:37]} 26. O-O {[%clk 0:01:39]} 26... Be5 {[%clk
0:00:36.9]} 27. Qd5 {[%clk 0:01:34.4]} 27... Bxd6 {[%clk 0:00:35.2]} 28. cxd6
{[%clk 0:01:34.7]} 28... Rxd6 {[%clk 0:00:32.6]} 29. Qxe4 {[%clk 0:01:34.8]}
29... Qxe4 {[%clk 0:00:32.6]} 30. Bxe4 {[%clk 0:01:35.7]} 30... b6 {[%clk
0:00:31.6]} 31. Rc1 {[%clk 0:01:29.5]} 31... Ne5 {[%clk 0:00:31.5]} 32. f4
{[%clk 0:01:27.4]} 32... Nd7 {[%clk 0:00:28.2]} 33. b4 {[%clk 0:01:22.5]} 33...
Re6 {[%clk 0:00:23.6]} 34. Bc6 {[%clk 0:01:19.6]} 34... Nf6 {[%clk 0:00:21.8]}
35. Kf2 {[%clk 0:01:15.6]} 35... Ne4+ {[%clk 0:00:20.6]} 36. Ke2 {[%clk
0:01:10.4]} 36... Nf6 {[%clk 0:00:16.3]} 37. Kf3 {[%clk 0:01:05.8]} 37... h5
{[%clk 0:00:16]} 38. b5 {[%clk 0:01:05.2]} 38... hxg4+ {[%clk 0:00:15.8]} 39.
hxg4 {[%clk 0:01:06.1]} 39... Kg7 {[%clk 0:00:15]} 40. Ra1 {[%clk 0:00:55.6]}
40... Re7 {[%clk 0:00:14.5]} 41. g5 {[%clk 0:00:56]} 41... Nh7 {[%clk
0:00:13.7]} 42. e4 {[%clk 0:00:53.6]} 42... Nf8 {[%clk 0:00:13.8]} 43. Kg4
{[%clk 0:00:47.1]} 43... f6 {[%clk 0:00:11]} 44. gxf6+ {[%clk 0:00:46.8]} 44...
Kxf6 {[%clk 0:00:11.9]} 45. e5+ {[%clk 0:00:47.4]} 45... Kg7 {[%clk 0:00:12]}
46. Rd1 {[%clk 0:00:47.7]} 46... Ne6 {[%clk 0:00:11.8]} 47. Rd6 {[%clk
0:00:41.5]} 47... Nc5 {[%clk 0:00:07.5]} 48. f5 {[%clk 0:00:34.6]} 48... gxf5+
{[%clk 0:00:07.5]} 49. Kxf5 {[%clk 0:00:35.5]} 49... Nd3 {[%clk 0:00:07.6]} 50.
Rxd3 {[%clk 0:00:34.3]} 50... Rf7+ {[%clk 0:00:07.3]} 51. Kg5 {[%clk 0:00:33.8]}
51... Re7 {[%clk 0:00:07.1]} 52. Rd7 {[%clk 0:00:30.7]} 52... Kf8 {[%clk
0:00:07.5]} 53. Kf6 {[%clk 0:00:29.9]} 53... Rxd7 {[%clk 0:00:07.5]} 54. Bxd7
{[%clk 0:00:30.8]} 54... a5 {[%clk 0:00:06.6]} 55. bxa6 {[%clk 0:00:30]} 1-0

[Event "*** Titled Tuesday Blitz"]
[Site "Chess.com"]
[Date "2020.04.21"]
[Round "1"]
[White "KingChess345"]
[Black "Karacsonyi_Gellert"]
[Result "1-0"]
[WhiteElo "2088"]
[BlackElo "2496"]
[TimeControl "180+1"]
[EndTime "10:07:46 PDT"]
[Termination "KingChess345 won by checkmate"]

1. d4 {[%clk 0:02:55.4]} 1... Nf6 {[%clk 0:02:59.5]} 2. Nf3 {[%clk 0:02:55.7]}
2... d5 {[%clk 0:02:58.9]} 3. g3 {[%clk 0:02:55.9]} 3... e6 {[%clk 0:02:56.5]}
4. Bg2 {[%clk 0:02:56.3]} 4... Be7 {[%clk 0:02:57.1]} 5. O-O {[%clk 0:02:55.6]}
5... O-O {[%clk 0:02:58]} 6. c4 {[%clk 0:02:56]} 6... dxc4 {[%clk 0:02:57]} 7.
Qc2 {[%clk 0:02:56.3]} 7... a6 {[%clk 0:02:53.4]} 8. Qxc4 {[%clk 0:02:56.4]}
8... b5 {[%clk 0:02:53.1]} 9. Qc2 {[%clk 0:02:56.8]} 9... Bb7 {[%clk 0:02:53.5]}
10. Bf4 {[%clk 0:02:57.2]} 10... Bd6 {[%clk 0:02:48]} 11. Nbd2 {[%clk
0:02:56.6]} 11... Nbd7 {[%clk 0:02:44.7]} 12. Nb3 {[%clk 0:02:52.3]} 12... Rc8
{[%clk 0:02:29.5]} 13. Rac1 {[%clk 0:02:46.8]} 13... Be4 {[%clk 0:02:18]} 14.
Qd2 {[%clk 0:02:44.7]} 14... Bxf4 {[%clk 0:02:10]} 15. gxf4 {[%clk 0:02:36.8]}
15... Qe7 {[%clk 0:02:04.7]} 16. Ne5 {[%clk 0:02:25]} 16... Bxg2 {[%clk
0:02:01.9]} 17. Kxg2 {[%clk 0:02:23.5]} 17... Nxe5 {[%clk 0:01:58.6]} 18. fxe5
{[%clk 0:02:17.7]} 18... Nh5 {[%clk 0:01:52.1]} 19. Nc5 {[%clk 0:02:07.2]} 19...
Qh4 {[%clk 0:01:48]} 20. Rc3 {[%clk 0:02:04.2]} 20... Nf4+ {[%clk 0:01:41.5]}
21. Kh1 {[%clk 0:02:01.2]} 21... f6 {[%clk 0:01:25.1]} 22. Rg3 {[%clk
0:01:27.9]} 22... fxe5 {[%clk 0:01:22.3]} 23. dxe5 {[%clk 0:01:28.8]} 23... Rcd8
{[%clk 0:01:22.1]} 24. Qe3 {[%clk 0:01:28.3]} 24... Rf5 {[%clk 0:01:18.6]} 25.
Rfg1 {[%clk 0:01:24.6]} 25... g6 {[%clk 0:01:08.8]} 26. Rg4 {[%clk 0:01:19.1]}
26... Qh6 {[%clk 0:01:08.7]} 27. Ne4 {[%clk 0:01:12.3]} 27... Rdf8 {[%clk
0:00:51.6]} 28. Nf6+ {[%clk 0:01:02.4]} 28... Kh8 {[%clk 0:00:43.3]} 29. R1g3
{[%clk 0:00:49.4]} 29... Rd8 {[%clk 0:00:39.6]} 30. Rg1 {[%clk 0:00:36.5]} 30...
Rf8 {[%clk 0:00:29.7]} 31. Rc1 {[%clk 0:00:28.9]} 31... Rf7 {[%clk 0:00:22.5]}
32. Rd1 {[%clk 0:00:27.6]} 32... Rf8 {[%clk 0:00:22.8]} 33. Rd7 {[%clk
0:00:27.1]} 33... R5xf6 {[%clk 0:00:08]} 34. exf6 {[%clk 0:00:28]} 34... Qh3
{[%clk 0:00:08.5]} 35. Qxf4 {[%clk 0:00:14.6]} 35... e5 {[%clk 0:00:06]} 36. Qg3
{[%clk 0:00:12.8]} 36... Qf1+ {[%clk 0:00:05.8]} 37. Qg1 {[%clk 0:00:12.9]}
37... Qxe2 {[%clk 0:00:06.7]} 38. Rh4 {[%clk 0:00:12.4]} 38... h5 {[%clk
0:00:03]} 39. Qxg6 {[%clk 0:00:07.1]} 39... Qf3+ {[%clk 0:00:03.2]} 40. Qg2
{[%clk 0:00:07.2]} 40... Qxg2+ {[%clk 0:00:02.2]} 41. Kxg2 {[%clk 0:00:08.1]}
41... Rxf6 {[%clk 0:00:02.9]} 42. Rxh5+ {[%clk 0:00:07.5]} 42... Kg8 {[%clk
0:00:03.5]} 43. Rxe5 {[%clk 0:00:08]} 43... Rg6+ {[%clk 0:00:03.5]} 44. Kf1
{[%clk 0:00:07.5]} 44... Rc6 {[%clk 0:00:04.4]} 45. Re8# {[%clk 0:00:07.3]} 1-0

[Event "*** Titled Tuesday Blitz"]
[Site "Chess.com"]
[Date "2020.04.21"]
[Round "1"]
[White "Piotrek1979"]
[Black "GMHess"]
[Result "0-1"]
[WhiteElo "2449"]
[BlackElo "2865"]
[TimeControl "180+1"]
[EndTime "10:07:47 PDT"]
[Termination "GMHess won on time"]

1. e4 {[%clk 0:02:59.6]} 1... g6 {[%clk 0:03:00.2]} 2. d4 {[%clk 0:02:58.7]}
2... Bg7 {[%clk 0:02:58.5]} 3. Nf3 {[%clk 0:02:58.6]} 3... a6 {[%clk 0:02:58.9]}
4. a4 {[%clk 0:02:56]} 4... d6 {[%clk 0:02:54.5]} 5. h3 {[%clk 0:02:55.5]} 5...
e6 {[%clk 0:02:54.6]} 6. Nc3 {[%clk 0:02:55.4]} 6... Ne7 {[%clk 0:02:55.3]} 7.
Be3 {[%clk 0:02:54.2]} 7... Nd7 {[%clk 0:02:55.8]} 8. Qd2 {[%clk 0:02:54.6]}
8... h6 {[%clk 0:02:56.3]} 9. a5 {[%clk 0:02:52.3]} 9... Nc6 {[%clk 0:02:55.5]}
10. d5 {[%clk 0:02:47.6]} 10... exd5 {[%clk 0:02:49.8]} 11. exd5 {[%clk
0:02:48.5]} 11... Ne7 {[%clk 0:02:49.9]} 12. Nd4 {[%clk 0:02:40.5]} 12... Nf6
{[%clk 0:02:44.2]} 13. Bc4 {[%clk 0:02:35.8]} 13... Nf5 {[%clk 0:02:37.4]} 14.
Nxf5 {[%clk 0:02:34.4]} 14... Bxf5 {[%clk 0:02:38.3]} 15. O-O-O {[%clk
0:02:24.8]} 15... h5 {[%clk 0:02:15.9]} 16. Kb1 {[%clk 0:02:13]} 16... Qd7
{[%clk 0:02:06.1]} 17. Bd4 {[%clk 0:02:11.7]} 17... O-O-O {[%clk 0:02:02.4]} 18.
Rhe1 {[%clk 0:02:04.2]} 18... Bh6 {[%clk 0:01:47.2]} 19. Qe2 {[%clk 0:01:50.2]}
19... Rhe8 {[%clk 0:01:40.2]} 20. Qf3 {[%clk 0:01:43.7]} 20... Nh7 {[%clk
0:01:27.7]} 21. Bd3 {[%clk 0:01:00.9]} 21... Bxd3 {[%clk 0:01:16.2]} 22. Qxd3
{[%clk 0:01:01.8]} 22... Bg5 {[%clk 0:01:02]} 23. b4 {[%clk 0:00:58.5]} 23...
Bf6 {[%clk 0:00:55.9]} 24. b5 {[%clk 0:00:58.2]} 24... axb5 {[%clk 0:00:46.3]}
25. Bxf6 {[%clk 0:00:50.7]} 25... Nxf6 {[%clk 0:00:45.3]} 26. Qd4 {[%clk
0:00:51.1]} 26... Rxe1 {[%clk 0:00:39.4]} 27. Rxe1 {[%clk 0:00:50.3]} 27... Re8
{[%clk 0:00:38]} 28. Rd1 {[%clk 0:00:50.1]} 28... Qf5 {[%clk 0:00:27.2]} 29. Qa7
{[%clk 0:00:49.5]} 29... Qf4 {[%clk 0:00:13.4]} 30. Rd4 {[%clk 0:00:29.1]} 30...
Re1+ {[%clk 0:00:13]} 31. Kb2 {[%clk 0:00:29.3]} 31... Qc1+ {[%clk 0:00:12.6]}
32. Kb3 {[%clk 0:00:29.7]} 32... Qa1 {[%clk 0:00:06.7]} 33. Qa8+ {[%clk
0:00:21.3]} 33... Kd7 {[%clk 0:00:07]} 34. Qxb7 {[%clk 0:00:22.1]} 34... Rb1+
{[%clk 0:00:04.9]} 35. Nxb1 {[%clk 0:00:22.2]} 35... Qxb1+ {[%clk 0:00:05.4]}
36. Kc3 {[%clk 0:00:22.9]} 36... Qa1+ {[%clk 0:00:05.5]} 37. Kd3 {[%clk
0:00:23.2]} 37... Qd1+ {[%clk 0:00:05.6]} 38. Ke3 {[%clk 0:00:14]} 38... Qe1+
{[%clk 0:00:01.6]} 39. Kf3 {[%clk 0:00:12]} 39... Qxa5 {[%clk 0:00:02.5]} 40.
Qc6+ {[%clk 0:00:11]} 40... Kd8 {[%clk 0:00:02.9]} 41. Kf4 {[%clk 0:00:08.7]}
41... Nd7 {[%clk 0:00:02.5]} 42. Kg5 {[%clk 0:00:07.8]} 42... Ne5 {[%clk
0:00:02.9]} 43. Qb7 {[%clk 0:00:01.8]} 43... Qc3 {[%clk 0:00:03.2]} 44. Re4
{[%clk 0:00:01.1]} 44... f6+ {[%clk 0:00:02.9]} 0-1

[Event "*** Titled Tuesday Blitz"]
[Site "Chess.com"]
[Date "2020.04.21"]
[Round "1"]
[White "DmitryMaximov"]
[Black "almaguerjm"]
[Result "1/2-1/2"]
[WhiteElo "2645"]
[BlackElo "2330"]
[TimeControl "180+1"]
[EndTime "10:07:47 PDT"]
[Termination "Game drawn by repetition"]

1. e4 {[%clk 0:03:00.9]} 1... e5 {[%clk 0:02:51.5]} 2. Nf3 {[%clk 0:02:59.8]}
2... Nc6 {[%clk 0:02:45.1]} 3. Bb5 {[%clk 0:02:59.4]} 3... a6 {[%clk 0:02:34.6]}
4. Ba4 {[%clk 0:02:59.3]} 4... Nf6 {[%clk 0:02:31.9]} 5. O-O {[%clk 0:02:58.8]}
5... Be7 {[%clk 0:02:24.7]} 6. Re1 {[%clk 0:02:58.4]} 6... O-O {[%clk
0:02:22.5]} 7. Bxc6 {[%clk 0:02:55]} 7... dxc6 {[%clk 0:02:20.3]} 8. Nxe5 {[%clk
0:02:55.2]} 8... Re8 {[%clk 0:02:06.5]} 9. d3 {[%clk 0:02:51.2]} 9... Bc5 {[%clk
0:02:04.4]} 10. Nf3 {[%clk 0:02:50.3]} 10... Ng4 {[%clk 0:02:04.3]} 11. Be3
{[%clk 0:02:48.1]} 11... Nxe3 {[%clk 0:01:59.5]} 12. fxe3 {[%clk 0:02:48.2]}
12... Qf6 {[%clk 0:01:55.4]} 13. Nc3 {[%clk 0:02:47.6]} 13... Bg4 {[%clk
0:01:43.6]} 14. h3 {[%clk 0:02:47.1]} 14... Bh5 {[%clk 0:01:43.2]} 15. Qe2
{[%clk 0:02:46.7]} 15... Rad8 {[%clk 0:01:41.7]} 16. Rf1 {[%clk 0:02:46.4]}
16... Qh6 {[%clk 0:01:38.7]} 17. Rae1 {[%clk 0:02:45]} 17... b5 {[%clk
0:01:37.5]} 18. Kh1 {[%clk 0:02:33.7]} 18... Bg6 {[%clk 0:01:10.1]} 19. Nd1
{[%clk 0:02:25]} 19... Bb4 {[%clk 0:01:08.2]} 20. c3 {[%clk 0:02:22.1]} 20...
Bd6 {[%clk 0:01:06.4]} 21. Nf2 {[%clk 0:02:19.3]} 21... Bg3 {[%clk 0:01:03.9]}
22. Rd1 {[%clk 0:02:14]} 22... c5 {[%clk 0:01:02.5]} 23. Ng4 {[%clk 0:02:09.6]}
23... Qh5 {[%clk 0:01:00.8]} 24. Nfh2 {[%clk 0:02:05.9]} 24... c4 {[%clk
0:00:54.7]} 25. Rf5 {[%clk 0:02:01.2]} 25... Bxf5 {[%clk 0:00:52.8]} 26. Nf6+
{[%clk 0:02:00.7]} 26... gxf6 {[%clk 0:00:46.9]} 27. Qxh5 {[%clk 0:01:59.9]}
27... Bg6 {[%clk 0:00:47.3]} 28. Qf3 {[%clk 0:01:59.5]} 28... Bxh2 {[%clk
0:00:47.5]} 29. Kxh2 {[%clk 0:01:56]} 29... cxd3 {[%clk 0:00:41.9]} 30. Rd2
{[%clk 0:01:52.9]} 30... Kg7 {[%clk 0:00:38.6]} 31. Qg3 {[%clk 0:01:47.5]} 31...
Re5 {[%clk 0:00:18.9]} 32. b4 {[%clk 0:01:39.8]} 32... Rd6 {[%clk 0:00:18.7]}
33. Kg1 {[%clk 0:01:22.2]} 33... Rxe4 {[%clk 0:00:18.9]} 34. Kf2 {[%clk
0:01:21.7]} 34... Rc4 {[%clk 0:00:19.2]} 35. Qf3 {[%clk 0:01:13.3]} 35... Rxc3
{[%clk 0:00:18.6]} 36. e4 {[%clk 0:01:09.2]} 36... Rd4 {[%clk 0:00:15.7]} 37. g4
{[%clk 0:01:01.3]} 37... Rxe4 {[%clk 0:00:15.2]} 38. h4 {[%clk 0:00:56.1]} 38...
Rc2 {[%clk 0:00:12.6]} 39. Rxc2 {[%clk 0:00:13.1]} 39... dxc2 {[%clk 0:00:11.9]}
40. g5 {[%clk 0:00:13.6]} 40... fxg5 {[%clk 0:00:04.7]} 41. Qc3+ {[%clk
0:00:13]} 41... Kf8 {[%clk 0:00:04.4]} 42. hxg5 {[%clk 0:00:12.9]} 42... Rc4
{[%clk 0:00:02.7]} 43. Qh8+ {[%clk 0:00:13.4]} 43... Ke7 {[%clk 0:00:03.2]} 44.
Qe5+ {[%clk 0:00:13.9]} 44... Kd8 {[%clk 0:00:03.2]} 45. Qd5+ {[%clk 0:00:14.1]}
45... Kc8 {[%clk 0:00:03.8]} 46. Qa8+ {[%clk 0:00:14]} 46... Kd7 {[%clk
0:00:04.5]} 47. Qd5+ {[%clk 0:00:14.5]} 47... Ke8 {[%clk 0:00:05]} 48. Qe5+
{[%clk 0:00:14.6]} 48... Kf8 {[%clk 0:00:05.6]} 49. Qh8+ {[%clk 0:00:14.6]}
49... Ke7 {[%clk 0:00:06.4]} 50. Qe5+ {[%clk 0:00:14.9]} 50... Kd7 {[%clk
0:00:07.1]} 51. Qd5+ {[%clk 0:00:15.3]} 51... Kc8 {[%clk 0:00:08]} 52. Qa8+
{[%clk 0:00:15.2]} 52... Kd7 {[%clk 0:00:08.7]} 53. Qd5+ {[%clk 0:00:15.7]}
1/2-1/2

[Event "*** Titled Tuesday Blitz"]
[Site "Chess.com"]
[Date "2020.04.21"]
[Round "1"]
[White "albano87"]
[Black "KazakhFighter04"]
[Result "0-1"]
[WhiteElo "2364"]
[BlackElo "2703"]
[TimeControl "180+1"]
[EndTime "10:07:49 PDT"]
[Termination "KazakhFighter04 won on time"]

1. d4 {[%clk 0:03:00.2]} 1... Nf6 {[%clk 0:02:59.8]} 2. Nf3 {[%clk 0:03:00.5]}
2... g6 {[%clk 0:02:58.8]} 3. g3 {[%clk 0:03:00.8]} 3... Bg7 {[%clk 0:02:58.6]}
4. Bg2 {[%clk 0:03:01.7]} 4... O-O {[%clk 0:02:59.2]} 5. O-O {[%clk 0:03:02.6]}
5... d6 {[%clk 0:02:59.8]} 6. a4 {[%clk 0:03:02.1]} 6... Nc6 {[%clk 0:02:56.5]}
7. Re1 {[%clk 0:02:59.4]} 7... e5 {[%clk 0:02:56.4]} 8. d5 {[%clk 0:02:53.4]}
8... Ne7 {[%clk 0:02:46.7]} 9. e4 {[%clk 0:02:54.3]} 9... h6 {[%clk 0:02:41.5]}
10. h3 {[%clk 0:02:53]} 10... Nh7 {[%clk 0:02:40.2]} 11. Be3 {[%clk 0:02:45.5]}
11... f5 {[%clk 0:02:39.6]} 12. exf5 {[%clk 0:02:46.2]} 12... Nxf5 {[%clk
0:02:40.5]} 13. Qd2 {[%clk 0:02:41.1]} 13... Nxe3 {[%clk 0:02:40.5]} 14. Qxe3
{[%clk 0:02:41.6]} 14... a5 {[%clk 0:02:29.4]} 15. Nbd2 {[%clk 0:02:36.2]} 15...
Bf5 {[%clk 0:02:25.6]} 16. c3 {[%clk 0:02:33.1]} 16... b6 {[%clk 0:02:09.6]} 17.
Kh2 {[%clk 0:02:30.7]} 17... Rf7 {[%clk 0:02:06.8]} 18. Nh4 {[%clk 0:02:14.2]}
18... Qf6 {[%clk 0:01:59.3]} 19. Rf1 {[%clk 0:01:52.5]} 19... Raf8 {[%clk
0:01:49.2]} 20. Nxf5 {[%clk 0:01:35.1]} 20... gxf5 {[%clk 0:01:48]} 21. f4
{[%clk 0:01:34.4]} 21... Re7 {[%clk 0:01:41.7]} 22. fxe5 {[%clk 0:01:17]} 22...
dxe5 {[%clk 0:01:36.9]} 23. Rae1 {[%clk 0:01:08.5]} 23... e4 {[%clk 0:01:21.1]}
24. Qf4 {[%clk 0:00:36.5]} 24... Qd6 {[%clk 0:01:14.8]} 25. Qxd6 {[%clk
0:00:34.7]} 25... cxd6 {[%clk 0:01:15.7]} 26. Nc4 {[%clk 0:00:34.1]} 26... Be5
{[%clk 0:01:14.4]} 27. Nxb6 {[%clk 0:00:31.8]} 27... Rg7 {[%clk 0:01:12.5]} 28.
Re3 {[%clk 0:00:18.8]} 28... Rf6 {[%clk 0:01:08.3]} 29. Nc4 {[%clk 0:00:18.3]}
29... f4 {[%clk 0:00:56]} 30. Rxe4 {[%clk 0:00:16.9]} 30... fxg3+ {[%clk
0:00:49.2]} 31. Kg1 {[%clk 0:00:16]} 31... Rxf1+ {[%clk 0:00:48.1]} 32. Kxf1
{[%clk 0:00:14.4]} 32... Ng5 {[%clk 0:00:47.5]} 33. Rg4 {[%clk 0:00:14.9]} 33...
h5 {[%clk 0:00:46]} 34. Rh4 {[%clk 0:00:13.9]} 34... Rf7+ {[%clk 0:00:45.6]} 35.
Kg1 {[%clk 0:00:13.4]} 35... Bf4 {[%clk 0:00:46.1]} 36. Rxh5 {[%clk 0:00:12.6]}
36... Re7 {[%clk 0:00:46.8]} 37. Bf1 {[%clk 0:00:07.1]} 37... Kg7 {[%clk
0:00:40.3]} 38. h4 {[%clk 0:00:06.7]} 38... Nf3+ {[%clk 0:00:38.2]} 39. Kg2
{[%clk 0:00:06.7]} 39... Ne1+ {[%clk 0:00:38.9]} 40. Kg1 {[%clk 0:00:06.8]}
40... Re4 {[%clk 0:00:39.4]} 41. Nxa5 {[%clk 0:00:05]} 41... Rxa4 {[%clk
0:00:38.9]} 42. Nc6 {[%clk 0:00:05.3]} 42... Ra2 {[%clk 0:00:38]} 43. Nd4 {[%clk
0:00:06]} 43... Rxb2 {[%clk 0:00:37.6]} 44. Ne6+ {[%clk 0:00:06.2]} 44... Kg8
{[%clk 0:00:33]} 0-1